bitfinex-derivatives/quotes_ETHF0:USTF0_20250727
["timestamp","ask_amount","ask_price","bid_price","bid_amount"]
[1753657360779,2.4136,3857.1,3856.6,5.0886]
[1753657360978,0.5897,3856.9,3856.6,3.2078]
[1753657361173,1.10814,3856.4,3856.3,0.51845]
[1753657361378,0.896,3856.3,3856.2,1.48675]
[1753657361678,0.9279,3856.7,3856.6,0.51841]
[1753657361679,1.8239,3856.7,3856.6,0.51841]
[1753657361877,0.51841,3856.6,3856.4,0.9683]
[1753657362080,0.51841,3856.6,3856.5,0.51842]
[1753657362277,2.34231,3856.6,3856.5,2.1092]
[1753657362486,0.51846,3856.2,3856.1,3.2078]
[1753657362676,0.51846,3856.2,3856.1,3.72627]
[1753657362677,2.93206,3856.2,3856.1,3.72627]
[1753657362877,2.93206,3856.2,3856.1,5.83547]
[1753657363182,2.93206,3856.2,3856.1,5.317]
[1753657363385,2.93206,3856.2,3856.1,5.83547]
[1753657363588,0.896,3856.2,3856.1,6.80377]
[1753657364083,1.41446,3856.2,3856.1,6.80377]
[1753657364580,0.896,3856.2,3856.1,6.80377]
[1753657364777,1.41446,3856.2,3856.1,6.80377]
[1753657365281,1.41446,3856.2,3856.1,6.2853]
[1753657365480,1.41446,3856.2,3856.1,6.80377]
[1753657365984,1.41446,3856.2,3856.1,6.2853]
[1753657366378,1.41446,3856.2,3856.1,6.80377]
[1753657366577,1.41446,3856.2,3856.1,6.2853]
[1753657366984,1.41446,3856.2,3856.1,6.80377]
[1753657367984,2.07116,3856.2,3856.1,8.77687]
[1753657368177,2.68386,3856.2,3856.1,8.77687]
[1753657368979,2.68386,3856.2,3856.1,8.2584]
[1753657370383,3.55946,3856.2,3856.1,8.2584]
[1753657370580,5.07706,3856.2,3856.1,3.2078]
[1753657370781,5.0771,3855.9,3855.8,0.19191618]
[1753657371083,5.07714,3855.6,3855.5,3.2078]
[1753657371283,2.66358,3855.3,3855.2,0.01815706]
[1753657371473,5.07718,3855.3,3855.2,0.01815706]
[1753657372185,1.4857,3855.1,3854.5,3.2078]
[1753657372385,0.51867,3854.6,3854.5,3.2078]
[1753657372687,2.93227,3854.6,3854.5,5.317]
[1753657372879,2.93227,3854.6,3854.5,3.2078]
[1753657373079,2.00443,3854.2,3854.1,2.1092]
[1753657373279,2.93233,3854.2,3854.1,2.1092]
[1753657373474,0.51874,3854.1,3854.0,3.2078]
[1753657373678,2.93234,3854.1,3854.0,3.2078]
[1753657373880,2.93234,3854.1,3854.0,5.317]
[1753657374484,2.93237,3853.9,3853.8,0.19201578]
[1753657375380,0.5897,3853.3,3852.7,2.1092]
[1753657375683,0.51891,3852.9,3852.8,3.0775]
[1753657375883,1.4149,3853.0,3852.9,2.1092]
[1753657376185,1.41489,3853.0,3852.9,2.1092]
[1753657376379,2.00459,3853.0,3852.9,2.1092]
[1753657376574,3.00204,3852.6,3852.5,3.2078]
[1753657376883,3.00206,3852.5,3852.4,0.16899535]
[1753657378280,8.00206,3852.5,3852.4,0.16899535]
[1753657378683,3.00206,3852.5,3852.4,0.16899535]
[1753657379588,2.10478,3852.3,3852.2,3.1209712]
[1753657379777,1.5858,3852.3,3852.2,3.1209712]
[1753657379978,2.10478,3852.3,3852.2,3.1209712]
[1753657380179,2.4709,3852.3,3851.5,3.2078]
[1753657380378,3.2078,3851.6,3851.5,0.51909]
[1753657380582,3.2078,3851.6,3851.5,3.62189]
[1753657380780,3.2078,3852.0,3851.8,0.51905]
[1753657380976,3.2078,3852.0,3851.5,3.1028]
[1753657380977,0.9282,3852.2,3851.9,3.1028]
[1753657381183,3.2078,3852.4,3852.3,3.62178]
[1753657381382,3.2078,3852.4,3852.3,3.1028]
[1753657381580,3.2078,3852.4,3852.3,3.62178]
[1753657382187,4.136,3852.4,3852.3,2.0927]
[1753657382488,0.51905,3851.8,3851.7,2.0927]
[1753657382691,3.2078,3851.8,3850.5,1.0101]
[1753657382881,0.51913,3851.3,3851.2,0.8541]
[1753657383088,3.2078,3851.6,3851.5,1.0101]
[1753657383286,3.2078,3852.0,3851.9,0.51904]
[1753657383482,3.2078,3852.0,3851.9,3.1028]
[1753657383694,0.9282,3852.6,3851.9,1.2386]
[1753657383993,3.2078,3852.7,3852.6,1.2386]
[1753657384194,3.2078,3852.7,3852.6,3.62174]
[1753657385096,3.2078,3852.7,3852.6,3.1028]
[1753657385698,3.72673,3852.7,3852.6,3.1028]
[1753657386291,3.2078,3852.7,3852.6,3.1028]
[1753657386487,3.72673,3852.7,3852.6,24.7788]
[1753657386991,3.72673,3852.7,3852.6,23.7657]
[1753657386992,4.65493,3852.7,3852.6,23.7657]
[1753657387993,4.65493,3852.7,3852.6,24.7758]
[1753657388294,3.72673,3852.7,3852.6,3.1028]
[1753657388488,3.72673,3852.7,3852.6,24.7738]
[1753657388992,0.51885,3853.3,3853.2,1.8642]
[1753657389288,0.51885,3853.3,3853.2,24.7538]
[1753657389493,1.23582145,3853.3,3853.2,24.7538]
[1753657389895,0.71697145,3853.3,3853.2,3.62166]
[1753657390090,3.2078,3853.6,3853.3,0.51885]
[1753657390393,2.20242743,3853.4,3852.8,0.51891]
[1753657390589,0.51888,3853.1,3852.8,0.51891]
[1753657390783,1.79312743,3853.0,3852.9,21.645]
[1753657390988,1.79312743,3853.0,3852.9,23.7377]
[1753657391183,3.2078,3853.2,3852.9,23.7397]
[1753657391390,3.2078,3853.2,3853.0,3.1028]
[1753657391593,3.2078,3853.2,3853.1,3.62168]
[1753657392789,0.51882,3853.5,3853.4,3.1028]
[1753657392990,3.2078,3853.6,3853.4,3.1028]
[1753657393190,0.51881,3853.7,3853.5,25.26162]
[1753657393383,0.5188,3853.7,3853.6,3.1028]
[1753657393785,1.447,3853.7,3853.6,3.1028]
[1753657393992,1.447,3853.7,3853.6,24.7358]
[1753657394888,0.5188,3853.7,3853.6,25.25461]
[1753657395100,0.51879,3853.8,3853.7,0.51879]
[1753657395396,0.51879,3853.8,3853.7,3.62159]
[1753657395600,0.51879,3853.8,3853.7,3.1028]
[1753657396188,0.51879,3853.8,3853.7,25.2366]
[1753657396595,0.51879,3853.8,3853.7,24.7178]
[1753657397095,0.71878,3853.9,3853.8,3.62158]
[1753657397604,0.2,3853.9,3853.8,25.22158]
[1753657398092,0.2,3853.9,3853.8,30.22158]
[1753657398987,0.9282,3854.9,3854.2,3.1028]
[1753657399192,0.51867,3854.7,3854.6,3.1028]
[1753657399699,0.51867,3854.7,3854.6,3.62148]
[1753657400090,1.23970272,3854.8,3854.7,3.1028]
[1753657400298,1.23967581,3854.8,3854.7,24.7048]
[1753657400492,2.16787581,3854.8,3854.7,24.7048]
[1753657401599,0.1205,3854.5,3854.1,2.0927]
[1753657401899,3.2078,3854.2,3854.1,3.1028]
[1753657402099,0.9282,3854.7,3854.6,3.62148]
[1753657402300,0.72187913,3854.7,3854.6,25.20748]
[1753657402701,0.72187913,3854.7,3854.6,30.20748]
[1753657402900,1.4468,3855.2,3855.1,3.1028]
[1753657403101,1.65002639,3855.2,3855.1,25.20441]
[1753657403696,2.16861639,3855.2,3855.1,25.20441]
[1753657403901,2.16861639,3855.2,3855.1,24.6858]
[1753657404802,1.65002639,3855.2,3855.1,25.20241]
[1753657405001,0.72182639,3855.2,3855.1,25.20241]
[1753657405395,0.72182639,3855.2,3855.1,3.62141]
[1753657405603,0.72182639,3855.2,3855.1,25.18841]
[1753657406302,0.018,3855.3,3855.2,3.62139]
[1753657406507,3.4078,3855.9,3855.8,3.62131]
[1753657406703,3.4078,3855.9,3855.8,25.17831]
[1753657407300,0.2,3855.9,3855.8,25.17831]
[1753657411807,0.2,3855.9,3855.8,30.17831]
[1753657413202,0.5184,3856.7,3856.0,3.0995]
[1753657413404,0.51838,3856.8,3856.7,0.51839]
[1753657413603,2.35958,3856.8,3856.7,24.15359]
[1753657414104,2.35958,3856.8,3856.7,24.6025]
[1753657414306,3.21023,3856.4,3856.3,0.867]
[1753657414502,3.21023,3856.4,3856.3,22.362]
[1753657415002,0.9412,3857.0,3856.5,3.0995]
[1753657415208,0.9412,3857.0,3856.9,0.51837]
[1753657415402,0.9412,3857.0,3856.9,27.20717]
[1753657415797,1.74453,3857.2,3857.1,2.59964]
[1753657416011,2.68573,3857.2,3857.1,5.1808]
[1753657416503,0.9,3857.4,3857.1,5.1808]
[1753657416504,1.5983,3857.7,3857.6,5.69907]
[1753657416804,0.51825,3857.8,3857.7,3.61776]
[1753657417002,0.71823,3857.9,3857.8,0.51825]
[1753657417205,1.1412,3857.9,3857.8,3.61775]
[1753657417403,1.65943,3857.9,3857.8,3.0995]
[1753657417606,0.2,3857.9,3857.8,3.61775]
[1753657418005,0.2,3857.9,3857.8,25.11075]
[1753657418909,1.9506,3857.9,3857.4,3.2078]
[1753657419115,1.8412,3857.5,3856.9,3.0995]
[1753657419310,0.51834,3857.2,3857.0,22.90834]
[1753657419519,0.51828,3857.6,3857.0,21.523]
[1753657419818,0.51825,3857.8,3857.7,0.867]
[1753657420011,1.45945,3857.8,3857.7,24.6195]
[1753657420205,5.56725,3857.8,3857.7,24.6195]
[1753657420411,1.45945,3857.8,3857.7,24.17046]
[1753657420617,0.2,3857.9,3857.8,3.61775]
[1753657421410,0.2,3857.9,3857.8,8.61775]
[1753657421610,0.9412,3858.8,3858.2,3.0995]
[1753657421811,0.9412,3858.8,3858.7,2.75062]
[1753657422015,0.9412,3858.8,3858.7,25.18362]
[1753657423109,0.9,3859.0,3858.7,25.18362]
[1753657423322,0.51807,3859.2,3858.7,21.566]
[1753657423520,3.2078,3859.3,3859.2,0.51806]
[1753657423719,3.2078,3859.3,3859.2,25.16956]
[1753657424119,3.72584,3859.3,3859.2,25.16956]
[1753657424518,2.35932,3858.7,3858.6,3.2078]
[1753657424717,2.35938,3858.3,3858.2,37.342]
[1753657425024,2.35938,3858.3,3858.2,61.0422]
[1753657425220,4.9584,3858.3,3857.7,2.1322]
[1753657425523,3.72604,3857.8,3857.7,1.2652]
[1753657425823,3.2078,3857.8,3857.3,2.1322]
[1753657426023,1.29529,3858.8,3857.9,2.1322]
[1753657426321,1.45937,3858.4,3858.1,0.5182]
[1753657426517,0.51818,3858.3,3858.2,2.2325]
[1753657426717,0.51829,3857.5,3857.2,0.9673]
[1753657427023,0.9412,3857.4,3857.3,22.12731]
[1753657427322,0.9412,3857.4,3857.3,25.22681]
[1753657427519,0.9412,3857.4,3857.3,3.61781]
[1753657427726,3.2101,3857.4,3857.3,22.469]
[1753657428231,0.51834,3857.1,3856.9,2.1322]
[1753657428433,0.9412,3857.1,3857.0,3.61785]
[1753657428631,0.9412,3857.1,3857.0,25.21885]
[1753657429931,0.9412,3857.1,3857.0,3.61785]
[1753657430231,0.9412,3857.1,3857.0,25.20485]
[1753657430429,1.8412,3857.5,3857.4,3.6178]
[1753657430628,0.9,3858.0,3857.4,21.585]
[1753657430927,3.2078,3858.3,3857.6,3.0995]
[1753657431129,3.72599,3858.3,3858.1,0.51819]
[1753657431326,2.35938,3858.3,3858.2,22.97519]
[1753657431530,2.35938,3858.3,3858.2,25.20769]
[1753657431531,0.9412,3858.3,3858.2,25.20769]
[1753657431832,4.1078,3858.7,3858.6,2.65034]
[1753657432030,0.51827,3857.7,3857.5,2.1322]
[1753657432228,2.26886,3857.7,3857.6,21.599]
[1753657432430,3.21006,3857.7,3857.6,21.599]
[1753657432629,0.51827,3857.6,3856.8,1.29596]
[1753657432934,0.51827,3857.6,3857.4,2.6505]
[1753657432935,0.9,3857.5,3857.4,2.6505]
[1753657433128,1.41829,3857.5,3857.4,23.7382]
[1753657433328,2.35949,3857.5,3857.4,23.7382]
[1753657433528,3.21009,3857.5,3857.4,23.7382]
[1753657434427,0.51836,3857.0,3856.8,0.9673]
[1753657434632,1.45956,3857.0,3856.9,23.7212]
[1753657434830,1.45956,3857.0,3856.9,24.6885]
[1753657435030,0.9412,3857.0,3856.9,25.20687]
[1753657435630,3.2078,3857.4,3857.0,3.0995]
[1753657435631,1.8412,3857.3,3857.0,3.0995]
[1753657435836,0.51834,3857.1,3857.0,3.0995]
[1753657436037,1.45954,3857.1,3857.0,3.0995]
[1753657436438,1.45954,3857.1,3857.0,3.61785]
[1753657437034,0.9412,3857.6,3857.1,0.51833]
[1753657437338,0.9412,3857.6,3856.9,21.589]
[1753657437339,0.51835,3857.0,3856.9,0.51836]
[1753657437539,0.9412,3857.0,3856.9,22.08936]
[1753657437733,0.51833,3857.2,3856.9,24.6705]
[1753657437929,0.9991,3857.2,3857.1,3.62804]
[1753657438133,1.51743,3857.2,3857.1,3.62804]
[1753657438338,1.51743,3857.2,3857.1,3.1097]
[1753657438533,3.97126713,3857.2,3857.1,0.8775]
[1753657438738,3.97126713,3857.2,3857.1,22.4335]
[1753657439234,6.98556456,3857.2,3856.3,1.2799]
[1753657439436,3.26005,3856.3,3856.2,3.2078]
[1753657439639,3.26005,3856.3,3856.2,24.7708]
[1753657440241,3.26005,3856.3,3856.2,3.2078]
[1753657440439,1.8573,3856.0,3855.9,1.2799]
[1753657440744,0.51849,3856.0,3855.9,23.7872]
[1753657440944,0.51849,3856.0,3855.9,24.6647]
[1753657441144,0.5185,3855.9,3855.8,0.19191618]
[1753657441348,3.2601,3855.9,3855.8,21.74491618]
[1753657441644,3.2601,3855.9,3855.8,23.90231618]
[1753657442743,0.51849,3856.0,3855.9,3.1097]
[1753657443540,1.51759,3856.0,3855.9,3.1097]
[1753657444345,2.7322,3856.0,3855.8,0.19191618]
[1753657444545,3.2507,3855.9,3855.8,0.19191618]
[1753657444744,3.2507,3855.9,3855.8,22.60841618]
[1753657444745,2.3664,3855.9,3855.8,22.60841618]
[1753657445045,1.5176,3855.9,3855.8,24.84061618]
[1753657447151,6.4585,3855.9,3855.8,0.19191618]
[1753657447543,6.4585,3855.9,3855.8,21.70691618]
[1753657447744,6.4585,3855.9,3855.8,0.19191618]
[1753657448143,6.4585,3855.9,3855.8,21.70691618]
[1753657449448,5.5742,3855.9,3855.8,23.86431618]
[1753657449748,3.2078,3855.9,3855.8,25.33512618]
[1753657449938,1.38051192,3857.3,3856.2,0.8775]
[1753657450137,1.38051192,3857.3,3856.9,2.1574]
[1753657450138,2.36625,3857.0,3856.9,2.1574]
[1753657450446,3.07703453,3857.0,3856.9,24.30077]
[1753657450642,0.71078453,3857.0,3856.9,25.25307]
[1753657450843,1.22913453,3857.0,3856.9,25.25307]
[1753657451246,0.51832,3857.3,3857.0,1.2799]
[1753657451439,0.71068283,3857.2,3857.1,0.51834]
[1753657451640,1.70978283,3857.2,3857.1,3.1097]
[1753657451846,2.22811283,3857.2,3857.1,3.1097]
[1753657452139,3.07691283,3857.2,3857.1,2.1574]
[1753657452343,2.36623,3857.2,3857.1,23.7854]
[1753657453046,3.25053,3857.2,3857.1,2.1574]
[1753657453345,3.25053,3857.2,3857.1,23.7774]
[1753657454952,2.36623,3857.2,3857.1,2.1574]
[1753657455151,2.36623,3857.2,3857.1,23.7754]
[1753657457151,0.51833,3857.2,3857.1,24.7277]
[1753657457354,2.36623,3857.2,3857.1,23.7394]
[1753657457954,2.36623,3857.2,3857.1,24.6917]
[1753657458259,3.25053,3857.2,3857.1,2.1574]
[1753657458557,3.25053,3857.2,3857.1,23.7344]
[1753657458850,3.25053,3857.2,3856.8,0.51837]
[1753657459050,2.7322,3856.5,3856.4,2.1574]
[1753657459254,3.25062,3856.5,3856.4,22.4405]
[1753657459557,3.25062,3856.5,3856.4,22.4465]
[1753657460444,3.25062,3856.5,3856.4,0.8775]
[1753657460644,1.7331,3856.1,3855.8,2.34931618]
[1753657460844,0.9991,3856.2,3855.8,1.06941618]
[1753657460845,3.2507,3855.9,3855.8,1.06941618]
[1753657461056,3.2507,3855.9,3855.8,22.62841618]
[1753657461453,3.2507,3855.9,3855.8,23.90831618]
[1753657461857,2.3664,3855.9,3855.8,23.90831618]
[1753657462055,2.3664,3855.9,3855.8,24.86061618]
[1753657462858,1.5176,3855.9,3855.8,24.86061618]
[1753657464659,3.2507,3855.9,3855.8,21.75091618]
[1753657464857,8.2507,3855.9,3855.8,0.19191618]
[1753657465053,8.2507,3855.9,3854.7,0.51866]
[1753657465054,3.25078,3855.3,3855.2,7.06e-06]
[1753657465250,0.51872,3854.3,3854.2,22.4165]
[1753657465451,3.25092,3854.3,3854.2,22.4165]
[1753657465859,0.51872,3854.3,3854.2,24.6487]
[1753657466060,3.2078,3854.7,3854.2,21.539]
[1753657466257,0.9991,3855.2,3854.6,0.8775]
[1753657466454,0.51863,3855.0,3854.9,0.51862]
[1753657466648,0.51863,3855.0,3854.9,3.62832]
[1753657466848,0.51863,3855.0,3854.9,3.1097]
[1753657467654,1.51773,3855.0,3854.9,3.1097]
[1753657467849,1.51773,3855.0,3854.9,2.1574]
[1753657468059,6.46213,3855.0,3854.9,2.1574]
[1753657468260,6.46213,3855.0,3854.9,23.6874]
[1753657469153,3.2078,3855.5,3854.9,23.6874]
[1753657469359,0.51861,3855.2,3855.1,3.655]
[1753657469952,3.2078,3855.5,3855.3,0.51857]
[1753657470153,4.66385,3855.5,3855.4,3.1364]
[1753657470556,5.48695,3855.5,3855.4,2.2085]
[1753657470755,5.48695,3855.5,3855.4,2.72707]
[1753657470964,3.72635,3855.5,3855.4,3.65497]
[1753657471160,4.66385,3855.5,3855.4,3.1364]
[1753657471752,4.66385,3855.5,3855.4,3.65497]
[1753657472063,1.45605,3855.5,3855.4,3.65497]
[1753657472263,1.45605,3855.5,3855.4,3.1364]
[1753657472662,1.45605,3855.5,3855.4,3.65497]
[1753657473465,1.45605,3855.5,3855.4,25.16397]
[1753657474357,0.51855,3855.5,3855.4,24.6454]
[1753657474863,1.45605,3855.5,3855.4,25.16397]
[1753657476254,0.51855,3855.5,3855.4,25.16397]
[1753657476457,0.9375,3855.8,3855.4,21.509]
[1753657476658,0.51851,3855.9,3855.8,0.5185]
[1753657476863,0.51851,3855.9,3855.8,3.6549]
[1753657477567,3.2078,3856.0,3855.9,0.5185]
[1753657477766,3.2078,3856.0,3855.9,3.6549]
[1753657478769,3.2078,3856.4,3856.3,3.65485]
[1753657479064,3.72623,3856.4,3856.3,25.12485]
[1753657479271,3.2078,3856.4,3856.3,25.12485]
[1753657481267,3.72623,3856.4,3856.3,24.6064]
[1753657481466,3.2078,3856.4,3856.3,25.12485]
[1753657481969,0.5184,3856.7,3856.6,0.51841]
[1753657482269,1.4559,3856.7,3856.6,24.5844]
[1753657482473,2.279,3856.7,3856.6,24.5844]
[1753657482766,2.279,3856.7,3856.6,25.10281]
[1753657482962,4.3267,3856.7,3856.6,4.5643]
[1753657483163,4.3267,3856.7,3856.6,26.0043]
[1753657483861,4.3267,3856.7,3856.6,27.15561]
[1753657484569,2.6549,3856.7,3856.6,27.15561]
[1753657484772,0.5184,3856.7,3856.6,27.15561]
[1753657484968,5.2555,3857.0,3856.9,5.1972]
[1753657485264,7.53445,3857.0,3856.9,26.20867]
[1753657485463,6.193,3857.0,3856.9,27.13657]
[1753657485660,4.4068,3857.0,3856.9,27.13657]
[1753657485858,2.27892,3857.3,3856.9,26.6182]
[1753657486071,5.86262,3857.3,3857.2,5.71553]
[1753657486269,5.86262,3857.3,3857.2,27.16453]
[1753657486971,3.50352,3857.3,3857.2,27.16453]
[1753657487670,3.50352,3857.3,3857.2,26.6462]
[1753657488067,1.71728,3857.6,3857.5,0.51829]
[1753657488269,2.65478,3857.6,3857.5,26.6322]
[1753657488567,4.32658,3857.6,3857.5,26.6322]
[1753657488773,4.32667,3856.9,3856.8,5.71558]
[1753657489069,4.32667,3856.9,3856.2,1.29615]
[1753657489070,0.51845,3856.3,3856.2,0.51845]
[1753657489272,4.32675,3856.3,3856.2,26.6212]
[1753657489466,4.32675,3856.3,3856.2,3.49166]
[1753657489665,5.24025,3856.3,3856.2,2.9732]
[1753657489863,0.51853,3855.7,3855.6,1.43094]
[1753657490068,1.29622,3856.1,3855.3,2.2085]
[1753657490069,1.7606,3855.5,3855.3,2.2085]
[1753657490264,2.27918,3855.4,3855.3,2.72707]
[1753657490473,2.27918,3855.4,3855.3,23.6385]
[1753657491274,1.45607,3855.4,3855.3,25.08498]
[1753657492066,0.8231,3855.7,3855.4,0.51856]
[1753657492271,0.9375,3855.6,3855.5,24.5664]
[1753657492471,1.45604,3855.6,3855.5,24.5664]
[1753657493073,0.51852,3855.8,3855.6,3.1364]
[1753657493271,0.51852,3855.8,3855.5,21.43]
[1753657493272,3.2078,3855.9,3855.5,21.94853]
[1753657493472,0.51852,3855.8,3855.7,0.51851]
[1753657493878,0.51852,3855.8,3855.7,3.65491]
[1753657494878,3.72631,3855.9,3855.8,0.51851]
[1753657495069,3.72631,3855.9,3855.7,0.51852]
[1753657495070,0.51851,3855.8,3855.7,0.51852]
[1753657495274,0.51851,3855.8,3855.7,21.93052]
[1753657495474,0.51851,3855.8,3855.7,23.4728]
[1753657495677,2.9852,3856.3,3856.2,4.2693]
[1753657495874,3.50365,3856.3,3856.2,5.1972]
[1753657496178,2.65495,3856.3,3856.2,5.1972]
[1753657496479,4.32675,3856.3,3856.2,5.1972]
[1753657498174,4.32675,3856.3,3856.2,4.2693]
[1753657498372,0.6455,3855.6,3855.5,2.1716]
[1753657498575,2.59467,3855.4,3855.3,23.2004]
[1753657498780,4.29777,3855.4,3855.3,24.946]
[1753657500478,4.29777,3855.4,3855.3,25.5971]
[1753657500683,4.29777,3855.4,3855.3,26.5203]
[1753657501279,4.29777,3855.4,3855.3,1.3874]
[1753657501484,2.59471,3855.1,3855.0,0.918]
[1753657501688,4.29781,3855.1,3855.0,26.5203]
[1753657501981,0.8892,3854.6,3854.1,3.0948]
[1753657502181,2.22183,3854.2,3854.1,23.5596]
[1753657502379,2.22183,3854.2,3853.8,2.36361578]
[1753657502380,0.51877,3853.9,3853.8,2.36361578]
[1753657502587,2.22187,3853.9,3853.8,23.75161578]
[1753657502781,6.31887,3853.9,3853.8,0.19201578]
[1753657505481,5.42967,3853.9,3853.8,3.28681578]
[1753657505882,1.6662,3854.3,3853.8,21.58401578]
[1753657506087,3.2078,3853.9,3853.8,0.19201578]
[1753657506276,6.31887,3853.9,3853.8,5.78e-06]
[1753657506480,2.22203,3852.7,3852.6,2.1716]
[1753657506686,3.11123,3852.7,3852.6,2.1716]
[1753657506880,2.22203,3852.7,3852.6,2.1716]
[1753657507079,2.22203,3852.7,3852.6,3.0948]
[1753657507586,2.22203,3852.7,3852.6,3.61374]
[1753657507783,2.22203,3852.7,3852.6,3.0948]
[1753657508489,1.44503,3852.7,3852.6,3.0948]
[1753657509289,5.54203,3852.7,3852.6,1.2176]
[1753657509487,3.14728,3852.3,3852.0,0.918]
[1753657509788,6.35508,3852.3,3852.0,0.918]
[1753657510180,3.14728,3852.3,3851.8,22.51031548]
[1753657510380,3.14728,3852.3,3852.2,0.9361712]
[1753657511082,3.14728,3852.3,3852.2,0.0181712]
[1753657512084,4.42150743,3852.3,3852.2,0.0181712]
[1753657512390,3.13224,3851.9,3851.8,0.19211548]
[1753657512689,6.34004,3851.9,3851.8,0.19211548]
[1753657513484,6.34004,3851.9,3851.8,5.48e-06]
[1753657513786,3.13233,3851.2,3851.1,0.918]
[1753657513981,3.13233,3851.2,3851.1,2.1716]
[1753657514188,3.13233,3851.2,3851.1,0.918]
[1753657514388,2.24313,3851.2,3851.1,3.0948]
[1753657514585,1.44523,3851.2,3851.1,3.0948]
[1753657514982,0.51913,3851.2,3851.1,3.0948]
[1753657515578,0.51913,3851.2,3851.1,0.51914]
[1753657515779,0.51913,3851.2,3851.1,3.61394]
[1753657516585,0.51913,3851.3,3851.2,0.51912]
[1753657516785,0.51913,3851.3,3851.2,3.61392]
[1753657516991,4.9318,3852.0,3851.2,3.0948]
[1753657517188,0.51909,3851.6,3851.5,3.61387]
[1753657517485,3.2078,3852.0,3851.6,3.0948]
[1753657517693,0.51905,3851.9,3851.8,2.1768]
[1753657517984,0.51905,3851.9,3851.8,3.61385]
[1753657518187,1.29733,3852.7,3852.0,1.44222]
[1753657518391,1.29733,3852.7,3852.1,21.925]
[1753657518592,0.519,3852.2,3852.1,21.925]
[1753657518790,4.9318,3852.8,3852.1,21.925]
[1753657518791,3.2078,3852.8,3852.1,21.406]
[1753657518983,0.519,3852.2,3852.1,24.5008]
[1753657519189,0.519,3852.2,3852.1,25.01981]
[1753657519487,2.22327,3853.2,3852.3,3.0948]
[1753657519688,0.51895,3852.6,3852.5,3.61374]
[1753657520186,0.51895,3852.6,3852.5,3.0948]
[1753657520688,3.13215,3852.6,3852.5,2.1716]
[1753657520890,1.44505,3852.6,3852.5,3.0948]
[1753657521396,0.51894,3852.7,3852.6,0.51894]
[1753657521596,4.1339,3853.4,3852.4,3.0948]
[1753657521789,4.1339,3853.4,3853.0,0.9232]
[1753657521993,3.72664,3853.4,3853.3,1.8412]
[1753657522288,0.71877,3853.9,3853.8,2.1768]
[1753657522889,1.64487,3853.9,3853.8,3.0948]
[1753657524893,0.71877,3853.9,3853.8,3.61358]
[1753657525592,0.71877,3853.9,3853.8,5.1333]
[1753657525789,0.2,3853.9,3853.8,27.05708]
[1753657526191,0.2,3853.9,3853.8,30.26488]
[1753657526694,5.29803,3854.9,3854.8,5.1333]
[1753657526995,4.84203623,3854.9,3854.8,3.0948]
[1753657527197,1.22676623,3854.9,3854.8,3.0948]
[1753657527489,0.51863,3854.9,3854.8,3.0948]
[1753657527694,0.51863,3854.9,3854.5,21.403]
[1753657527695,0.51863,3855.0,3854.9,3.61343]
[1753657527888,0.5186,3855.2,3855.1,3.50351]
[1753657528092,1.22715502,3855.2,3855.1,3.50351]
[1753657528991,1.22715502,3855.2,3855.1,2.9849]
[1753657529592,3.02085502,3855.2,3855.0,21.4]
[1753657529897,2.22029,3854.5,3854.4,23.4805]
[1753657530292,2.22029,3854.5,3854.4,24.3849]
[1753657530590,2.22029,3854.5,3854.4,23.4805]
[1753657530792,1.7016,3854.1,3853.6,3.2078]
[1753657530998,0.51879,3853.8,3853.7,22.82219]
[1753657531494,0.51879,3853.8,3853.7,24.3839]
[1753657531795,0.51879,3853.8,3853.7,2.9849]
[1753657531996,0.51879,3853.8,3853.7,24.3829]
[1753657532192,2.22039,3853.8,3853.7,24.3829]
[1753657532387,0.51879,3853.8,3853.7,24.3829]
[1753657532993,0.51879,3853.8,3853.7,24.9017]
[1753657533299,4.1329,3854.2,3853.9,2.9849]
[1753657533488,3.72654,3854.2,3854.1,2.30164]
[1753657533688,3.72654,3854.2,3854.1,24.3829]
[1753657534297,4.65164,3854.2,3854.1,24.3829]
[1753657534497,3.72654,3854.2,3854.1,24.3829]
[1753657535099,3.72654,3854.2,3854.1,24.3819]
[1753657535302,4.65164,3854.2,3854.1,24.3819]
[1753657535598,1.44384,3854.2,3854.1,24.3819]
[1753657535901,0.51874,3854.2,3854.1,24.3819]
[1753657537895,0.51874,3854.2,3854.1,26.4168]
[1753657538997,1.73678,3853.8,3853.7,26.4158]
[1753657539297,4.24318,3853.8,3853.7,26.4158]
[1753657539503,5.11178,3853.8,3853.7,25.5114]
[1753657540295,5.11178,3853.8,3853.7,4.1154]
[1753657540502,2.54168,3853.1,3853.0,38.2575]
[1753657540803,4.24328,3853.1,3853.0,60.8545]
[1753657541005,4.24328,3853.1,3853.0,61.7589]
[1753657541906,1.3875,3852.9,3852.8,3.2078]
[1753657542105,1.44404,3852.6,3852.5,2.9849]
[1753657542303,0.51894,3852.7,3852.6,1.72093]
[1753657542505,0.51894,3852.7,3852.6,3.50383]
[1753657542895,0.51894,3852.7,3852.6,2.9849]
[1753657543113,2.22054,3852.7,3852.6,23.4745]
[1753657543407,3.08914,3852.7,3852.6,23.4745]
[1753657543801,2.22054,3852.7,3852.6,2.9849]
[1753657543996,1.44404,3852.7,3852.6,24.3809]
[1753657544606,0.51893,3852.7,3852.6,24.89984]
[1753657544806,0.51893,3852.7,3852.6,24.3809]
[1753657545396,0.51893,3852.7,3852.6,26.4158]
[1753657546809,0.5189,3853.0,3852.9,2.55379]